bitfinex/quotes_ETHUSD_20251213
["timestamp","ask_amount","ask_price","bid_price","bid_amount"]
[1765668700675,1.67636338,3114.6,3114.5,34.27119969]
[1765668701085,2.15206338,3114.6,3114.5,34.27119969]
[1765668702201,2.15206338,3114.6,3114.5,26.69219969]
[1765668702398,2.15206338,3114.6,3114.5,22.89219969]
[1765668702596,2.15206338,3114.6,3114.5,25.63178824]
[1765668704398,2.15206338,3114.6,3114.5,6.14078824]
[1765668704606,2.15206338,3114.6,3114.5,16.23707633]
[1765668706899,1.67636338,3114.6,3114.5,16.23707633]
[1765668708392,1.67636338,3114.6,3114.5,2.43707633]
[1765668708707,1.67636338,3114.6,3114.5,33.30707633]
[1765668709808,2.15206338,3114.6,3114.5,33.30707633]
[1765668712518,1.67636338,3114.6,3114.5,34.27119969]
[1765668714214,1.67636338,3114.6,3114.5,30.96412336]
[1765668714418,1.67636338,3114.6,3114.5,33.68198793]
[1765668714719,1.67636338,3114.6,3114.5,34.1749116]
[1765668717788,1.19646338,3114.6,3114.5,34.1749116]
[1765668718645,2.15056338,3114.6,3114.5,34.1749116]
[1765668719127,1.69496338,3114.6,3114.5,34.1749116]
[1765668720223,1.19646338,3114.6,3114.5,30.0]
[1765668720529,1.19646338,3114.6,3114.5,34.17484963]
[1765668722923,1.19646338,3114.6,3114.5,29.52484963]
[1765668723525,1.69496338,3114.6,3114.5,34.17484963]
[1765668724226,1.19646338,3114.6,3114.5,34.17484963]
[1765668724825,0.69046338,3114.6,3114.5,34.17484963]
[1765668726149,0.69046338,3114.6,3114.5,30.37484963]
[1765668726424,0.69046338,3114.6,3114.5,33.58563787]
[1765668726999,1.64456338,3114.6,3114.5,33.58563787]
[1765668727200,2.5076426,3114.6,3114.5,3.58563787]
[1765668727401,2.51043293,3114.6,3114.5,3.58563787]
[1765668727601,1.64456338,3114.6,3114.5,3.58563787]
[1765668727801,1.64456338,3114.6,3114.5,3.21078824]
[1765668728819,1.64456338,3114.6,3114.4,30.0]
[1765668729131,2.51771186,3114.5,3114.4,30.0]
[1765668729431,3.01621186,3114.5,3114.4,30.0]
[1765668731413,3.01621186,3114.5,3114.4,29.41089134]
[1765668731611,3.01621186,3114.5,3114.4,33.21089134]
[1765668731939,2.56061186,3114.5,3114.4,33.21089134]
[1765668732242,2.15056338,3114.5,3114.4,33.21089134]
[1765668738032,1.19646338,3114.5,3114.4,33.21089134]
[1765668741045,1.19646338,3114.5,3114.3,29.41089134]
[1765668741246,0.506,3114.5,3114.4,33.30717943]
[1765668741443,1.19792085,3114.5,3114.4,33.30717943]
[1765668743049,1.69642085,3114.5,3114.4,33.30717943]
[1765668746928,1.69642085,3114.5,3114.4,29.50717943]
[1765668747128,1.69642085,3114.5,3114.4,33.21089134]
[1765668748452,2.14792085,3114.5,3114.4,33.21089134]
[1765668749656,1.69642085,3114.5,3114.4,33.21089134]
[1765668752653,2.14792085,3114.5,3114.4,33.21089134]
[1765668752839,2.14792085,3114.5,3114.4,29.41089134]
[1765668753042,2.14792085,3114.5,3114.4,33.21089134]
[1765668755365,3.01356933,3114.5,3114.4,33.21089134]
[1765668756840,1.55756933,3114.5,3114.4,33.21089134]
[1765668758861,1.55756933,3114.5,3114.4,29.41089134]
[1765668759060,1.55756933,3114.5,3114.4,33.21089134]
[1765668759831,2.04656933,3114.5,3114.4,33.21089134]
[1765668760036,2.49806933,3114.5,3114.4,33.21089134]
[1765668764766,2.49806933,3114.5,3114.3,29.41089134]
[1765668764970,0.86564848,3114.5,3114.4,33.30717943]
[1765668765176,1.55847591,3114.5,3114.4,33.30717943]
[1765668765473,2.04747591,3114.5,3114.4,33.30717943]
[1765668765768,2.49897591,3114.5,3114.4,33.30717943]
[1765668766296,1.55847591,3114.5,3114.4,33.30717943]
[1765668766575,0.69282743,3114.5,3114.4,33.30717943]
[1765668766865,1.18182743,3114.5,3114.4,34.17497132]
[1765668767050,1.63332743,3114.5,3114.4,33.21089134]
[1765668768271,0.69282743,3114.5,3114.4,33.21089134]
[1765668768466,0.69282743,3114.5,3114.4,34.1750085]
[1765668768767,0.69281883,3114.5,3114.4,4.1750085]
[1765668768947,0.69281883,3114.5,3114.4,34.1750085]
[1765668770151,1.18181883,3114.5,3114.4,34.1750085]
[1765668770356,1.63331883,3114.5,3114.4,34.1750085]
[1765668770574,1.63331883,3114.5,3114.4,33.2240085]
[1765668770775,1.63331883,3114.5,3114.4,29.4240085]
[1765668771074,1.63331883,3114.5,3114.4,3.21089134]
[1765668771379,1.63331883,3114.5,3114.4,33.21089134]
[1765668771875,1.63331883,3114.5,3114.4,3.21089134]
[1765668772376,1.63331883,3114.5,3114.3,3.21099444]
[1765668772554,0.69281883,3114.4,3114.3,3.21099444]
[1765668776481,0.69281883,3114.4,3114.3,3.30728253]
[1765668776783,0.6930438,3114.4,3114.3,3.30728253]
[1765668778662,0.6930438,3114.4,3114.3,4.27141518]
[1765668782583,0.6930438,3114.4,3114.3,0.56770327]
[1765668782884,0.6930438,3114.4,3114.3,3.77869771]
[1765668784258,1.1903438,3114.4,3114.3,3.77869771]
[1765668788362,1.1903438,3114.4,3114.3,3.30728253]
[1765668788561,1.1903438,3114.4,3114.3,0.09628809]
[1765668789083,1.37230475,3114.9,3114.4,30.0]
[1765668789275,1.37230475,3114.9,3114.8,0.09628809]
[1765668789463,2.06523234,3114.9,3114.8,0.09628809]
[1765668790183,2.06523234,3114.9,3114.8,3.30676709]
[1765668791085,3.20013234,3114.9,3114.8,3.30676709]
[1765668791387,3.20013234,3114.9,3114.8,3.210479]
[1765668791583,3.20013234,3114.9,3114.4,0.96407379]
[1765668791584,2.33382759,3114.9,3114.4,0.96407379]
[1765668791783,0.86586359,3114.6,3114.3,0.09628809]
[1765668791987,0.4973,3114.4,3114.3,3.30726775]
[1765668792185,1.19022759,3114.4,3114.3,3.30726775]
[1765668792370,1.19022759,3114.4,3114.3,3.21099444]
[1765668792371,2.50899118,3114.4,3114.3,3.21099444]
[1765668792571,2.50899118,3114.4,3114.1,3.2111933]
[1765668792773,0.4973,3114.2,3114.1,3.2111933]
[1765668792974,1.19022759,3114.2,3114.1,3.2111933]
[1765668793168,1.64312759,3114.2,3114.1,3.2111933]
[1765668793578,0.4973,3113.8,3113.6,2.792]
[1765668793788,0.4973,3113.7,3113.6,5.04038707]
[1765668793989,1.18975961,3113.7,3113.6,5.04038707]
[1765668794286,1.64265961,3113.7,3113.6,3.21171634]
[1765668794673,1.64265961,3113.7,3113.6,12.90271634]
[1765668795392,0.9502,3113.7,3113.6,12.90271634]
[1765668795693,0.9502,3113.7,3113.6,3.21171634]
[1765668795876,0.9502,3113.7,3113.6,12.92071634]
[1765668796277,0.9502,3113.7,3113.6,3.21171634]
[1765668796482,0.9502,3113.7,3113.6,12.92171634]
[1765668796881,0.9502,3113.7,3113.6,12.93471634]
[1765668797283,0.9502,3113.7,3113.6,12.94171634]
[1765668797600,0.9502,3113.7,3113.6,3.21171634]
[1765668797800,0.506,3113.9,3113.7,30.0]
[1765668797999,0.506,3113.9,3113.8,0.09628809]
[1765668798204,1.19753274,3113.9,3113.8,0.09628809]
[1765668798384,1.19753274,3113.9,3113.8,3.30779814]
[1765668799699,1.19753274,3113.9,3113.8,3.21151005]
[1765668799906,1.19753274,3113.9,3113.7,0.09628809]
[1765668800213,0.506,3113.9,3113.8,3.21151005]
[1765668800386,1.19723382,3113.9,3113.8,0.09628809]
[1765668800706,1.19723382,3113.9,3113.8,3.30779814]
[1765668803211,0.506,3113.9,3113.8,3.30779814]
[1765668805729,0.506,3113.9,3113.7,10.09628809]
[1765668805908,0.506,3113.9,3113.7,0.09628809]
[1765668806109,0.506,3113.9,3113.7,10.09628809]
[1765668806311,0.506,3113.9,3113.7,0.09628809]
[1765668806510,0.506,3113.9,3113.7,10.09628809]
[1765668810633,0.506,3113.9,3113.8,3.21151005]
[1765668812004,0.506,3113.9,3113.7,15.87569732]
[1765668812202,0.506,3113.9,3113.8,0.09628809]
[1765668813344,0.506,3113.9,3113.8,3.30779814]
[1765668816037,0.997,3113.9,3113.8,3.30779814]
[1765668817940,0.997,3113.9,3113.8,0.09628809]
[1765668818136,0.997,3113.9,3113.7,15.28720737]
[1765668818311,0.997,3113.9,3113.8,0.09628809]
[1765668818511,1.68817065,3113.9,3113.8,0.09628809]
[1765668818713,1.68817065,3113.9,3113.8,3.30779814]
[1765668818912,1.19717065,3113.9,3113.8,3.30779814]
[1765668819148,0.506,3114.2,3113.8,39.73081824]
[1765668819352,0.506,3114.2,3114.1,0.09628809]
[1765668819538,3.07697365,3114.2,3114.1,0.09628809]
[1765668819735,3.56797365,3114.2,3114.1,0.09628809]
[1765668820053,4.05787365,3114.2,3114.1,0.09628809]
[1765668820340,4.05787365,3114.2,3114.1,3.30748875]
[1765668821460,4.0586743,3114.2,3114.1,3.30748875]
[1765668822449,4.9239712,3114.2,3114.1,3.30748875]
[1765668824021,4.9239712,3114.2,3113.9,3.21134285]
[1765668824212,0.491,3114.0,3113.9,0.09628809]
[1765668824418,1.18323752,3114.0,3113.9,3.30759543]
[1765668829322,1.67313752,3114.0,3113.9,3.30759543]
[1765668830044,1.67313752,3114.0,3113.9,0.09628809]
[1765668830247,1.67313752,3114.0,3113.9,3.30759543]
[1765668830747,1.18323752,3114.0,3113.9,3.30759543]
[1765668835952,1.18323752,3114.0,3113.7,13.21151276]
[1765668836262,0.69223752,3113.9,3113.7,2.91168437]
[1765668836432,0.69223752,3113.8,3113.7,32.91168437]
[1765668840134,0.69223752,3113.8,3113.7,38.68926618]
[1765668841959,0.69223752,3113.8,3113.7,34.98555427]
[1765668842130,0.69223752,3113.8,3113.7,15.8738699]
[1765668842331,0.69223752,3113.8,3113.7,38.25426748]
[1765668847952,0.69223752,3113.8,3113.7,34.45426748]
[1765668848148,0.69223752,3113.8,3113.7,33.4908454]
[1765668853480,0.69223752,3113.8,3113.7,43.4908454]
[1765668853679,0.69223752,3113.8,3113.7,33.4908454]
[1765668853851,0.69223752,3113.8,3113.7,29.26517309]
[1765668854047,0.69223752,3113.8,3113.7,35.0427549]
[1765668854351,0.69223752,3113.8,3113.7,35.04356472]
[1765668854550,0.69223752,3113.8,3113.7,38.2550773]
[1765668856681,0.69223752,3113.8,3113.7,18.8026143]
[1765668856884,1.64243752,3113.8,3113.7,18.8026143]
[1765668857549,1.64243752,3113.8,3113.7,38.2550773]
[1765668857981,1.64243752,3113.8,3113.7,24.90003249]
[1765668858480,1.64243752,3113.8,3113.7,32.47749549]
[1765668859154,1.64243752,3113.8,3113.7,24.40303249]
[1765668859660,1.64243752,3113.8,3113.7,24.46003249]
[1765668859861,1.64243752,3113.8,3113.7,20.28428809]
[1765668860060,1.64243752,3113.8,3113.7,21.24851991]
[1765668860281,1.64243752,3113.8,3113.7,20.28509783]
[1765668860473,1.64243752,3113.8,3113.7,31.51407349]
[1765668860864,1.15053752,3113.8,3113.7,31.51407349]
[1765668862078,0.69223752,3113.8,3113.7,31.51407349]
[1765668864854,0.69223752,3113.8,3113.7,37.2916553]
[1765668865772,0.69223752,3113.8,3113.7,33.1159109]
[1765668866287,0.69223752,3113.8,3113.7,32.15245788]
[1765668866685,0.69223752,3113.8,3113.7,35.36397046]
[1765668867390,0.69223752,3113.8,3113.7,30.54984167]
[1765668869099,0.69223752,3113.8,3113.7,34.88183769]
[1765668869471,0.69223752,3113.8,3113.7,22.64679669]
[1765668869799,1.14803752,3113.8,3113.7,17.39279669]
[1765668869994,1.14803752,3113.8,3113.7,15.57179669]
[1765668870796,1.14803752,3113.8,3113.7,7.63979669]
[1765668871001,1.14803752,3113.8,3113.7,15.54479669]
[1765668871693,1.14803752,3113.8,3113.7,11.84108478]
[1765668871894,1.14803752,3113.8,3113.7,21.99808478]
[1765668872090,1.14803752,3113.8,3113.7,11.99808478]
[1765668872286,1.62013752,3113.8,3113.7,11.99808478]
[1765668872487,1.62013752,3113.8,3113.7,14.24614434]
[1765668872898,1.62013752,3113.8,3113.7,14.33514434]
[1765668873976,1.14803752,3113.8,3113.7,33.42618534]
[1765668874191,0.69223752,3113.8,3113.7,33.42618534]
[1765668874904,0.69223752,3113.8,3113.7,43.42618534]
[1765668875201,0.69223752,3113.8,3113.7,33.42618534]
[1765668876501,0.69223752,3113.8,3113.7,26.23414434]
[1765668877008,0.69223752,3113.8,3113.7,26.34614434]
[1765668877707,0.69223752,3113.8,3113.7,20.25828809]
[1765668877911,0.69223752,3113.8,3113.7,23.46980067]
[1765668878112,0.69223752,3113.8,3113.7,30.54984167]
[1765668878516,0.69223752,3113.8,3113.7,27.33832909]
[1765668879417,0.69223752,3113.8,3113.7,30.54984167]
[1765668883414,1.14803752,3113.8,3113.7,14.24480067]
[1765668883717,1.14803752,3113.8,3113.7,18.50828809]
[1765668883912,1.62013752,3113.8,3113.7,18.50828809]
[1765668884418,1.62013752,3113.8,3113.7,21.66180067]
[1765668884712,1.62013752,3113.8,3113.7,3.30780067]
[1765668884903,1.62013752,3113.8,3113.7,13.58580067]
[1765668885096,1.62013752,3113.8,3113.7,9.95180067]
[1765668885287,1.62013752,3113.8,3113.7,9.86280067]
[1765668886324,1.62013752,3113.8,3113.7,11.20580067]
[1765668887319,1.62013752,3113.8,3113.7,19.35580067]
[1765668887813,1.14803752,3113.8,3113.7,19.35580067]
[1765668888018,0.69223752,3113.8,3113.7,23.68777816]
[1765668888420,0.69223752,3113.8,3113.7,43.52245616]
[1765668888623,0.69223752,3113.8,3113.7,33.52245616]
[1765668888923,0.69223752,3113.8,3113.7,14.75977816]
[1765668889301,1.14803752,3113.8,3113.7,14.76077816]
[1765668889515,1.14803752,3113.8,3113.7,9.62906625]
[1765668889698,1.62013752,3113.8,3113.7,12.84057883]
[1765668890300,1.62013752,3113.8,3113.7,33.03025683]
[1765668890497,1.62013752,3113.8,3113.7,32.66498314]
[1765668890823,1.62013752,3113.8,3113.7,29.19047867]
[1765668891297,1.62013752,3113.8,3113.7,3.30780067]
[1765668891503,1.62013752,3113.8,3113.7,29.19047867]
[1765668892512,0.69223752,3113.8,3113.7,29.19047867]
[1765668895432,0.69223752,3113.8,3113.7,0.09628809]
[1765668895612,0.69223752,3113.8,3113.7,25.48676709]
[1765668896536,0.69223752,3113.8,3113.7,28.69827967]
[1765668899602,0.69223752,3113.8,3113.7,3.30780067]
[1765668899834,0.69223752,3113.8,3113.7,28.69827967]
[1765668901333,1.16313752,3113.8,3113.7,12.25808876]
[1765668901505,1.64353752,3113.8,3113.7,3.21151258]
[1765668901707,3.47323052,3113.8,3113.7,3.21161319]
[1765668902708,3.47323052,3113.8,3113.5,0.002]
[1765668902909,0.4709,3113.6,3113.5,24.90028]
[1765668903111,1.16313752,3113.6,3113.5,24.90028]
[1765668903330,2.60794912,3113.6,3113.5,24.90028]
[1765668905036,2.60794912,3113.6,3113.5,28.11209949]
[1765668906527,2.60794912,3113.6,3113.5,24.31209949]
[1765668906714,2.60794912,3113.6,3113.5,3.21181949]
[1765668906916,2.60794912,3113.6,3113.5,24.31209949]
[1765668907145,2.60794912,3113.6,3113.5,23.22181949]
[1765668907919,3.11394912,3113.6,3113.5,3.21181949]
[1765668908117,3.42534403,3113.6,3113.4,3.2138872]
[1765668908349,1.64353752,3113.5,3113.4,0.002]
[1765668908817,2.60804834,3113.5,3113.4,0.002]
[1765668910420,3.47334524,3113.5,3113.4,0.002]
[1765668911350,2.60804834,3113.5,3113.4,0.002]
[1765668911644,3.35919727,3113.5,3113.4,0.002]
[1765668912235,3.35919727,3113.5,3112.5,4.91640155]
[1765668912236,0.4709,3113.0,3112.5,4.91640155]
[1765668912434,0.6522,3112.9,3112.8,3.89127653]
[1765668912842,1.1326,3112.9,3112.8,3.89127653]
[1765668913229,1.6386,3113.1,3112.8,7.10381829]
[1765668913431,1.6386,3113.1,3113.0,0.09628809]
[1765668913818,2.1095,3113.1,3113.0,0.09628809]
[1765668914023,1.4573,3113.1,3113.0,0.09628809]
[1765668915752,1.4573,3113.1,3113.0,3.30862345]
[1765668920758,0.9769,3113.1,3112.8,3.49618807]
[1765668920949,0.4804,3113.0,3112.9,3.21243856]
[1765668921746,0.9513,3113.0,3112.9,3.21243856]
[1765668925277,0.506,3113.1,3112.9,3.21243856]
[1765668925582,0.506,3113.1,3112.9,7.54636482]
[1765668926084,1.0046,3113.1,3112.9,7.54636482]
[1765668926446,0.4742,3113.0,3112.9,7.54636482]
[1765668926647,0.9728,3113.0,3112.9,7.54636482]
[1765668927284,0.9728,3113.0,3112.9,3.74636482]
[1765668927572,0.9728,3113.0,3112.9,6.95880338]
[1765668930381,1.15216482,3113.7,3112.9,6.95880338]
[1765668930382,0.4986,3113.4,3113.0,0.58047529]
[1765668930588,0.69211748,3113.3,3113.0,10.58047529]
[1765668930881,0.4742,3113.1,3113.0,3.43847529]
[1765668931086,0.4742,3113.1,3113.0,13.43847529]
[1765668931383,0.4742,3113.1,3113.0,3.79281065]
[1765668931544,0.4742,3113.1,3113.0,13.79281065]
[1765668931977,0.4742,3113.1,3113.0,13.88909874]
[1765668932184,0.4742,3113.1,3113.0,3.88909874]
[1765668932577,0.4742,3113.1,3113.0,13.88909874]
[1765668933168,0.4742,3113.1,3113.0,3.88909874]
[1765668933593,0.4742,3113.1,3113.0,13.88909874]
[1765668933915,0.4742,3113.1,3113.0,3.88909874]
[1765668934065,0.4742,3113.1,3113.0,0.08909874]
[1765668934667,0.4742,3113.1,3113.0,2.65309874]
[1765668935075,0.4742,3113.1,3113.0,12.65309874]
[1765668935480,0.4742,3113.1,3113.0,16.987025]
[1765668935679,0.4742,3113.1,3113.0,25.523305]
[1765668935991,1.0046,3113.3,3113.1,21.10028]
[1765668936200,0.69273454,3113.2,3113.1,21.68075529]
[1765668937665,0.69273454,3113.2,3113.1,6.30870747]
[1765668937888,1.66553454,3113.2,3113.1,10.64263373]
[1765668938566,1.16693454,3113.2,3113.1,10.64263373]
[1765668938768,1.16693454,3113.2,3113.1,10.64298287]
[1765668940003,1.16693454,3113.2,3113.1,6.84298287]
[1765668940208,1.16693454,3113.2,3113.1,20.05521505]
[1765668940415,1.16693454,3113.2,3113.1,10.05521505]
[1765668941879,0.69273454,3113.2,3113.1,10.63569034]
[1765668942507,0.8652969,3113.6,3113.2,0.58047529]
[1765668942807,1.3712969,3113.7,3113.5,4.43056349]
[1765668943106,0.69319634,3113.6,3113.5,0.09628809]
[1765668943996,0.69319634,3113.6,3113.5,3.30810758]
[1765668944306,0.69319634,3113.6,3113.5,7.64238298]
[1765668946005,0.69319634,3113.6,3113.5,7.05420247]
[1765668946206,0.69319634,3113.6,3113.5,11.88037029]
[1765668946399,0.69319634,3113.6,3113.5,32.97335829]
[1765668947010,0.69319634,3113.6,3113.5,28.63908289]
[1765668947679,0.69319634,3113.6,3113.5,32.97335829]
[1765668947881,0.69319634,3113.6,3113.5,28.63707867]
[1765668949012,0.69319634,3113.6,3113.5,24.30480749]
[1765668949213,0.69319634,3113.6,3113.5,28.63707867]
[1765668951816,0.69319634,3113.6,3113.5,24.83707867]
[1765668952006,0.69319634,3113.6,3113.5,28.04889816]
[1765668955694,0.69319634,3113.6,3113.5,28.14518625]
[1765668956192,0.69319634,3113.6,3113.5,33.43864259]
[1765668956406,1.81809661,3113.7,3113.6,3.79219163]
[1765668956612,1.81809661,3113.7,3113.6,24.88517963]
[1765668958714,1.37192632,3114.3,3113.7,21.08518]
[1765668958945,0.69262189,3114.2,3114.1,21.18146809]
[1765668959124,0.69262189,3114.2,3114.1,25.51373927]
[1765668959819,1.16782189,3114.2,3114.1,25.51373927]
[1765668960327,0.69262189,3114.2,3114.1,25.51373927]
[1765668960521,1.16782189,3114.2,3114.1,25.51373927]
[1765668960700,1.16782189,3114.2,3114.1,28.72493993]
[1765668961523,0.69262189,3114.2,3114.1,28.72493993]
[1765668961933,0.001,3114.5,3114.1,40.06008772]
[1765668962112,0.001,3114.5,3114.4,30.73570165]
[1765668962306,0.001,3114.5,3114.4,31.24170165]
[1765668962621,0.001,3114.5,3114.4,31.62241152]
[1765668963024,0.001,3114.5,3114.4,34.83330286]
[1765668963817,0.001,3114.8,3114.4,40.79477686]
[1765668964023,0.001,3114.8,3114.7,40.42648574]
[1765668964323,0.001,3114.8,3114.7,30.42648574]
[1765668964910,0.001,3114.9,3114.8,24.87613429]
[1765668966620,0.001,3114.9,3114.8,25.25684416]
[1765668966805,0.001,3114.9,3114.8,28.46644729]
[1765668969713,0.001,3114.9,3114.8,24.66644729]
[1765668970118,0.001,3114.9,3114.8,28.78843029]
[1765668970924,0.001,3114.9,3114.8,37.08130849]
[1765668971610,0.001,3114.9,3114.8,37.66178378]
[1765668974342,0.001,3114.9,3114.8,41.98870758]
[1765668975127,0.001,3114.9,3114.8,20.90352758]
[1765668975314,0.001,3114.9,3114.8,41.98870758]
[1765668975516,0.001,3114.9,3114.8,38.18870758]
[1765668976221,0.001,3115.3,3114.9,22.07115929]
[1765668976433,0.001,3115.3,3115.2,25.4121038]
[1765668977345,0.001,3115.3,3115.2,28.62217056]
[1765668981543,0.001,3115.3,3115.2,24.82217056]
[1765668982460,0.001,3115.3,3115.2,3.73699056]
[1765668982664,0.001,3115.3,3115.2,24.82217056]
[1765668987454,0.001,3115.3,3115.2,25.34909436]
[1765668987774,0.001,3115.3,3115.2,28.55916156]
[1765668988462,0.959,3115.3,3115.2,28.55916156]
[1765668988854,0.959,3115.3,3115.2,23.07199056]
[1765668989662,0.959,3115.3,3115.2,28.55916156]
[1765668990961,0.959,3115.3,3115.2,23.18599056]
[1765668991769,0.959,3115.3,3115.2,28.55916156]
[1765668993370,1.65105442,3115.3,3115.2,24.75916156]
[1765668995984,1.65105442,3115.3,3115.2,22.38699056]
[1765668996275,1.16255442,3115.3,3115.2,9.43899056]
[1765668996511,1.65105442,3115.3,3115.2,9.43899056]
[1765668997045,1.65105442,3115.3,3115.2,24.75916156]
[1765668998282,0.959,3115.3,3115.2,24.75916156]
[1765668999458,0.959,3115.3,3115.2,25.28608536]
[1765669000077,0.959,3115.3,3115.2,38.49615256]
[1765669000276,0.959,3115.3,3115.2,28.49615256]
[1765669001283,0.4705,3115.3,3115.2,28.49615256]
[1765669004570,0.001,3115.3,3115.2,28.49615256]
[1765669005488,0.001,3115.3,3115.2,24.69615256]
[1765669006280,0.4705,3115.3,3115.2,24.69615256]
[1765669008596,0.4705,3115.3,3115.2,6.34406676]
[1765669008597,0.959,3115.3,3115.2,6.34406676]
[1765669008899,0.959,3115.3,3115.2,3.79054205]
[1765669009198,1.65219348,3115.3,3115.2,3.79054205]
[1765669009503,0.959,3115.3,3115.2,3.79054205]
[1765669010065,0.959,3115.3,3115.2,8.11934147]
[1765669010788,0.959,3115.3,3115.2,29.07850347]
[1765669012360,0.959,3115.3,3115.2,14.85434147]
[1765669012878,0.959,3115.3,3115.2,8.11934147]
[1765669013897,1.65185803,3115.3,3115.2,7.53886618]
[1765669020200,1.65185803,3115.3,3115.2,3.73886618]
[1765669021493,1.16335803,3115.3,3115.2,3.73886618]
[1765669021807,1.63455803,3115.3,3115.2,3.73886618]
[1765669025992,0.4909,3115.2,3115.1,0.03515427]
[1765669026190,0.9621,3115.2,3115.1,4.36395369]
[1765669026380,0.9621,3115.2,3115.1,7.5741235]
[1765669032037,7.4521,3115.2,3115.1,3.7741235]
[1765669033301,8.14455546,3115.2,3115.1,3.7741235]
[1765669033843,8.14455546,3115.2,3115.1,3.21016981]
[1765669034710,8.14455546,3115.2,3115.0,3.21027287]
[1765669034926,1.16365546,3115.1,3115.0,7.53907229]
[1765669035127,1.65455546,3115.1,3115.0,7.53907229]
[1765669037932,8.14455546,3115.1,3115.0,3.73907229]
[1765669038426,8.14455546,3115.1,3115.0,6.94934516]
[1765669043943,8.14455546,3115.1,3115.0,7.47814458]
[1765669044744,7.67335546,3115.1,3115.0,7.47814458]
[1765669045542,7.67335546,3115.1,3115.0,7.47830615]
[1765669049829,7.67335546,3115.1,3115.0,3.67830615]
[1765669050345,7.67335546,3115.1,3115.0,6.88857902]
[1765669051159,8.15845546,3115.1,3115.0,6.88857902]
[1765669052321,7.67335546,3115.1,3115.0,6.88857902]
[1765669055750,7.67335546,3115.1,3115.0,3.08857902]
[1765669060367,7.18245546,3115.1,3115.0,3.08857902]
[1765669061772,10.98245546,3115.1,3115.0,3.08857902]
[1765669062268,10.29,3115.1,3115.0,3.08857902]
[1765669062570,10.98335934,3115.1,3115.0,3.08857902]
[1765669065776,10.98335934,3115.1,3115.0,38.37670201]
[1765669065965,10.29,3115.1,3115.0,28.37670201]
[1765669067366,10.29,3115.1,3115.0,28.9571773]
[1765669067677,3.8,3115.1,3115.0,28.9571773]
[1765669067894,3.8,3115.1,3115.0,38.9571773]
[1765669068175,3.8,3115.1,3115.0,28.9571773]
[1765669068876,3.8,3115.1,3115.0,7.9980153]
[1765669069180,3.8,3115.1,3115.0,28.9571773]
[1765669071853,3.8,3115.1,3115.0,33.28329067]
[1765669073475,3.8,3115.2,3115.0,33.28329067]
[1765669073681,3.8,3115.2,3115.1,21.63592538]
[1765669075279,3.8,3115.2,3115.1,24.84609519]
[1765669077179,3.8,3115.2,3115.1,3.88693319]
[1765669077386,3.8,3115.2,3115.1,24.84609519]
[1765669078158,3.8,3115.2,3115.1,3.88693319]
[1765669078362,3.8,3115.2,3115.1,24.84609519]
[1765669080388,3.8,3115.2,3115.1,34.84609519]
[1765669080577,3.8,3115.2,3115.1,24.84609519]
[1765669081365,3.8,3115.2,3115.1,39.17329367]
[1765669081584,3.8,3115.2,3115.1,29.17329367]
[1765669083399,3.8,3115.2,3115.1,29.57879767]
[1765669083693,3.8,3115.2,3115.1,29.96633204]
[1765669084067,0.001,3115.3,3115.2,21.53963729]
[1765669085196,0.001,3115.4,3115.3,21.53963729]
[1765669085409,0.001,3115.4,3115.3,24.74960101]
[1765669086890,0.001,3115.5,3115.4,0.98597929]
[1765669087069,0.001,3115.5,3115.4,26.75616223]
[1765669087596,0.001,3115.5,3115.4,29.96602292]
[1765669087994,0.001,3115.6,3115.4,29.96602292]
[1765669088177,0.001,3115.8,3115.6,21.364666]
[1765669088493,0.001,3115.8,3115.7,32.89034047]
[1765669089491,0.001,3115.8,3115.7,15.14073009]
[1765669089667,0.001,3115.8,3115.7,36.09989209]
[1765669090497,0.001,3115.8,3115.7,36.60589209]
[1765669092590,0.001,3115.8,3115.7,15.64673009]
[1765669092789,0.001,3115.8,3115.7,36.60589209]
[1765669093602,0.001,3115.8,3115.7,15.64673009]
[1765669093807,0.001,3115.8,3115.7,36.60589209]
[1765669094918,0.001,3115.8,3115.7,32.27869361]
[1765669096213,0.001,3115.8,3115.7,36.60589209]
[1765669096712,0.001,3115.8,3115.7,15.64673009]
[1765669096899,0.001,3115.8,3115.7,36.60589209]
[1765669097299,3.801,3115.8,3115.7,36.60589209]
[1765669104819,4.3005,3115.8,3115.7,32.27869361]
[1765669105116,4.3005,3115.8,3115.7,29.17267548]
[1765669105339,4.7571,3115.8,3115.7,17.363315]
[1765669105835,4.7571,3115.8,3115.7,12.33883971]
[1765669106036,4.7571,3115.8,3115.7,18.698315]
[1765669107006,4.7571,3115.8,3115.7,24.845477]
[1765669108419,4.7571,3115.8,3115.7,20.658315]
[1765669108614,4.7571,3115.8,3115.7,19.590315]
[1765669108925,4.7571,3115.8,3115.7,3.886315]
[1765669109144,4.7571,3115.8,3115.7,11.633315]
[1765669109934,4.7571,3115.8,3115.7,3.886315]
[1765669110752,4.7571,3115.8,3115.7,11.530315]
[1765669110946,4.7571,3115.8,3115.7,11.529315]
[1765669111246,4.7571,3115.8,3115.7,3.20955162]
[1765669114241,4.307,3115.8,3115.7,24.16871362]
[1765669114412,4.769,3115.8,3115.7,24.16871362]
[1765669114730,5.2256,3115.8,3115.7,24.16871362]
[1765669116012,5.2256,3115.8,3115.7,3.20955162]
[1765669116218,5.2256,3115.8,3115.7,24.16871362]
[1765669121035,7.9156,3115.8,3115.7,20.368714]
[1765669121340,7.9156,3115.8,3115.7,23.57826562]
[1765669122833,6.997,3115.8,3115.7,23.57826562]
[1765669123018,6.491,3115.8,3115.7,27.90538562]
[1765669123729,6.953,3115.8,3115.7,27.90538562]
[1765669124063,7.4096,3115.8,3115.7,16.54455162]
[1765669124267,7.4096,3115.8,3115.7,20.40055162]
[1765669124451,6.953,3115.8,3115.7,20.40055162]
[1765669124962,7.4096,3115.8,3115.7,20.40055162]
[1765669125330,7.4096,3115.8,3115.7,23.57826562]
[1765669126967,4.7196,3115.8,3115.7,23.57826562]
[1765669127171,4.263,3115.8,3115.7,23.57826562]
[1765669127635,3.801,3115.8,3115.7,23.57826562]
[1765669127849,3.801,3115.8,3115.7,27.90538562]
[1765669133870,3.801,3115.8,3115.7,27.90446213]
[1765669134380,3.801,3115.8,3115.7,7.53574813]
[1765669134568,3.801,3115.8,3115.7,27.90446213]
[1765669135865,3.801,3115.8,3115.7,32.23065864]
[1765669136387,3.801,3115.8,3115.7,33.19427722]
[1765669140393,3.801,3115.8,3115.7,34.16228688]
[1765669140594,3.801,3115.8,3115.7,35.46149975]
[1765669141475,0.001,3115.8,3115.7,6.44039273]